Cogmind - Beta 15 @@@ ROGUE MODE // 2025.10.19 @ 12:44:26 Player: Bruh93 Result: Destroyed by G-34 Mercenary with Small Laser Performance ------------- Evolutions (0) 0 Regions Visited (1) 200 Robots Destroyed (19) 95 Value Destroyed (445) 445 Prototype IDs (0) 0 Alien Tech Used (0) 0 Bonus (0) 0 TOTAL SCORE: 740 Bonus ------- None Cogmind --------- Core Integrity 0/250 Matter 169/300 Energy 100/100 System Corruption 1% Temperature Cool (12) Movement Core (150) Ox2 Location -10/Materials Parts ------- > --- POWER (1) -------- (None) > --- PROPULSION (2) --- (None) > --- UTILITY (2) ------ Small Storage Unit > --- WEAPON (2) ------- Grenade Launcher > --- INVENTORY (8) ---- Aluminum Leg Aluminum Leg Heat Sink Improved Heat Sink Signal Interpreter Terrain Scanner Peak State ------------ > --- POWER ------------ Light Ion Engine > --- PROPULSION ------- Aluminum Leg Aluminum Leg > --- UTILITY ---------- Heat Sink Improved Heat Sink > --- WEAPON ----------- Assault Rifle Grenade Launcher > --- INVENTORY -------- Aluminum Leg Assault Rifle Light Assault Rifle [Rating: 9] Favorites ----------- Power Light Ion Engine Engine Light Ion Engine Propulsion Compact Wheel Leg Aluminum Leg Wheel Compact Wheel Utility Small Storage Unit Device Sensor Array Storage Small Storage Unit Weapon Assault Rifle Ballistic Gun Assault Rifle Launcher Grenade Launcher Build | -11 -10 ------- Run | Yrd Mat Slots Evolved . | . . Power . | . . Propulsion . | . . Utility . | . . Weapon . | . . Parts Attached 17 | 6 11 Power 2 | 1 1 Engine 2 | 1 1 Core . | . . Reactor . | . . Propulsion 6 | 2 4 Treads . | . . Leg 3 | 2 1 Wheel 3 | . 3 Hover . | . . Flight . | . . Utility 5 | 1 4 Device 4 | 1 3 Storage 1 | . 1 Processor . | . . Hackware . | . . Protection . | . . Artifact . | . . Weapon 4 | 2 2 Energy Gun . | . . Energy Cannon . | . . Ballistic Gun 3 | 2 1 Ballistic Cannon . | . . Launcher 1 | . 1 Special Weapon . | . . Impact Weapon . | . . Slashing Weapon . | . . Piercing Weapon . | . . Special Melee Weapon . | . . Unidentified Prototypes . | . . Parts Lost 7 | . 7 Power 1 | . 1 Propulsion 2 | . 2 Utility 1 | . 1 Weapon 3 | . 3 Highest Loss Streak 6 | . 6 To Critical Strikes . | . . Average Backups 5 | . 6 Power . | . . Propulsion 1 | . 2 Utility 2 | . 2 Weapon 1 | . 1 Tool/Special . | . . Unused Backups 5 | . 5 Power . | . . Propulsion 3 | . 3 Utility 2 | . 2 Weapon . | . . Tool/Special . | . . Average Slot Usage (%) 96 | . 96 Engine 13 | . 13 Leg 11 | . 11 Wheel 16 | . 16 Device 15 | . 15 Storage 10 | . 10 Ballistic Gun 20 | . 20 Launcher 6 | . 6 Peak Build Rating 9 | 6 9 Average Rating 7 | 4 7 On Entrance 3 | . 6 Naked Turns . | . . Heaviest Build 14 | 8 14 Greatest Support 32 | 20 32 Greatest Overweight (x) . | . . Average Overweight (x) . | . . Largest Inventory Capacity 8 | 5 8 Average Capacity 7 | 5 7 Most Carried 8 | 2 8 Average Carried 5 | . 6 Final Capacity 8 | 5 8 Final Carried 6 | 2 6 Class Distribution -------------------- 100% | Mutant Dominant Class ---------------- Mutant | -10/Materials Resources | -11 -10 ----------- Run | Yrd Mat Matter Collected 547 | 278 269 Remotely . | . . Salvage Created 565 | 50 515 Parts 24 | 2 22 Haulers Intercepted 1 | . 1 Recyclers Shooed . | . . Parts Field Recycled . | . . Retrieved Matter . | . . Parts Self-Destructed . | . . Prevented . | . . Kills | -11 -10 ------- Run | Yrd Mat Combat Hostiles Destroyed 12 | 1 11 Guns 5 | 1 4 AOE 7 | . 7 Classes Destroyed 7 | 1 6 Worker 2 | . 2 Tunneler 1 | . 1 Hauler 1 | . 1 Recycler 1 | . 1 Watcher 2 | . 2 Swarmer 2 | . 2 Grunt 10 | 1 9 Best Kill Streak 5 | 1 5 Combat Bots Only 3 | 1 3 Max Kills in Single Turn 2 | 1 2 Gunslinging . | . . Exploded 2 | . 2 Melee . | . . Uniques/NPCs Destroyed . | . . Combat | -11 -10 -------- Run | Yrd Mat Hostile Shots Fired 119 | 4 115 Missed 33 | 1 32 Hits 86 | 3 83 Projectile 86 | 3 83 Critical Strikes 2 | . 2 Damage Taken 916 | 34 882 Core 257 | . 257 Absorbed by Shields . | . . Core Remaining (%) 100 | 100 . Volleys Fired 45 | 3 42 Largest 2 | 2 2 Hottest 50 | 40 50 Shots Fired 74 | 6 68 Gun 60 | 6 54 Cannon . | . . Launcher 14 | . 14 Special . | . . Kinetic 60 | 6 54 Thermal . | . . Explosive 14 | . 14 Electromagnetic . | . . Robot Hit Streak 5 | 2 5 Robot Miss Streak 5 | 1 5 Penetration Max . | . . Secondary Targets . | . . Shots Hit Robots 36 | 4 32 Core Hits 34 | 2 32 Critical Kills . | . . Critical Parts Destroyed . | . . Critical Strikes . | . . Melee Attacks . | . . Impact . | . . Slashing . | . . Piercing . | . . Sneak Attacks . | . . Combat Hostiles . | . . Follow-up Attacks . | . . Damage Inflicted 1046 | 48 998 Guns 386 | 48 338 Cannons . | . . Explosions 660 | . 660 Melee . | . . Ramming . | . . Kinetic 386 | 48 338 Thermal . | . . Explosive 660 | . 660 Electromagnetic . | . . Impact . | . . Slashing . | . . Piercing . | . . Highest Corruption 1 | . 1 Average Corruption 1 | . 1 Corruption Purged . | . . Corruption Blocked . | . . Effects 5 | . 5 Message Errors 2 | . 2 Matter Fused 1 | . 1 Energy Discharges 1 | . 1 Misfires 1 | . 1 Overload Shots . | . . Overflow Damage 8 | . 8 Projectiles . | . . Explosions 8 | . 8 Melee . | . . Knockbacks . | . . Impact . | . . Kinetic . | . . Secondary . | . . Self-Inflicted Damage 13 | . 13 Shots 1 | . 1 Rammed . | . . Targets Rammed . | . . Kicked . | . . Crushed . | . . Highest Temperature 18 | . 18 Average Temperature 6 | . 6 Received Heat Transfer 396 | 18 378 Siege Activations . | . . Martial Activations . | . . Shielding Activations . | . . Robots Disrupted . | . . Combat Hostiles . | . . Robots Corrupted . | . . Combat Hostiles . | . . Parts Fried . | . . Impact Corruptions . | . . Robots Melted . | . . Combat Hostiles . | . . Parts Melted . | . . Heat Transferred . | . . Parts Sabotaged . | . . Parts Stolen . | . . Parts Stripped . | . . Power Chain Reactions . | . . Alert | -11 -10 ------- Run | Yrd Mat Maximum Alert Level . | . . Low Security (%) 100 | 100 100 Level 1 . | . . Level 2 . | . . Level 3 . | . . Level 4 . | . . Level 5 . | . . High Security . | . . Max Security . | . . Peak Influence 176 | 20 176 Initial 6 | . 6 Average 78 | 2 89 Influence Increases 445 | 20 425 Destroy 0b10 Robot/C 240 | 20 220 Destroy 0b10 Robot/NC 35 | . 35 Destroy Leader 66 | . 66 Disable Machine 15 | . 15 Destroy Structure 74 | . 74 Lose Combat Pursuer 15 | . 15 Influence Decreases 372 | 10 362 Entered New Map 4 | . 4 Time Decay 298 | 10 288 Lost Part 70 | . 70 Squads Dispatched 5 | . 5 Investigation 2 | . 2 Extermination . | . . Reinforcement 3 | . 3 Assault . | . . Garrison . | . . Intercept . | . . Searches Triggered . | . . Construction Impeded . | . . Haulers Reinforced . | . . Active Scanning Responses . | . . Cargo Convoy Interrupts . | . . Stealth | -11 -10 --------- Run | Yrd Mat Distress Signals 2 | . 2 Communications Jammed . | . . Distress Signals . | . . Times Spotted 24 | 1 23 Peak Tracking Total 8 | 1 8 Tactical Retreats 1 | . 1 Traps | -11 -10 ------- Run | Yrd Mat Traps Triggered 1 | . 1 Indirectly . | . . Trap Hack Attempts . | . . Triggered . | . . Disarmed . | . . Reprogrammed . | . . Reused . | . . Traps Extracted . | . . Installed . | . . Triggered . | . . Machines | -11 -10 ---------- Run | Yrd Mat Machines Disabled 1 | . 1 Max in Single Turn 1 | . 1 Machines Repaired . | . . Machines Dismantled . | . . Machines Sabotaged . | . . Overloaded Fab Kills . | . . Hacking | -11 -10 --------- Run | Yrd Mat Machines Accessed 4 | . 4 Terminals 3 | . 3 Fabricators . | . . Repair Stations . | . . Recycling Units 1 | . 1 Scanalyzers . | . . Garrison Access . | . . Total Hacks 18 | . 18 Successful 11 | . 11 Failed 7 | . 7 Catastrophic . | . . Database Lockouts . | . . Manual . | . . Terminals 14 | . 14 Fabricators . | . . Repair Stations . | . . Recycling Units 4 | . 4 Scanalyzers . | . . Garrison Access . | . . Terminal Hacks 7 | . 7 Record 4 | . 4 Alert Level 3 | . 3 Fabricator Hacks . | . . Repair Station Hacks . | . . Recycling Unit Hacks 4 | . 4 Recycle Component 1 | . 1 Process 1 | . 1 Report Inventory 2 | . 2 Scanalyzer . | . . Garrison Access Hacks . | . . Unauthorized Hacks . | . . Terminals . | . . Fabricators . | . . Repair Stations . | . . Recycling Units . | . . Scanalyzers . | . . Garrison Access . | . . Data Cores Recovered . | . . Used . | . . Hacking Detections 2 | . 2 Full Trace Events 1 | . 1 Feedback Events 1 | . 1 Corruption 1 | . 1 Feedback Blocked . | . . Robot Schematics Acquired . | . . Robots Built . | . . Authchips . | . . Time . | . . Total Robot Build Rating . | . . Part Schematics Acquired . | . . Parts Built . | . . Authchips . | . . Time . | . . Total Part Build Rating . | . . Parts Repaired . | . . Time . | . . Parts Recycled 1 | . 1 Recycled Matter 126 | . 126 Retrieved Matter . | . . Retrieved Components . | . . Parts Scanalyzed . | . . Part Schematics Acquired . | . . Parts Damaged . | . . Bothacking | -11 -10 ------------ Run | Yrd Mat Used RIF Installer . | . . Robots Hacked . | . . Non-combat . | . . Combat . | . . Robot Hacks Applied . | . . Relay Couplers Released . | . . Fabnet Peak Effective % . | . . Robots Rewired . | . . Allies Hacked . | . . Hacks Repelled . | . . Allies | -11 -10 -------- Run | Yrd Mat Total Allies . | . . Largest Group . | . . Highest-Rated Group . | . . Highest-Rated Ally . | . . Total Orders . | . . Ally Attacks . | . . Total Damage . | . . Kills . | . . Allies Corrupted . | . . Allies Melted . | . . Intel | -11 -10 ------- Run | Yrd Mat Active Infowar (turns) 481 | . 481 Sensors 322 | . 322 Terrain 159 | . 159 Robot Analysis Total . | . . Derelict Logs Recovered . | . . Drone Launches . | . . Drone Recoveries . | . . Exploration | -11 -10 ------------- Run | Yrd Mat Turns Passed 744 | 91 653 Spaces Moved 538 | 67 471 Core 13 | 13 . Treads . | . . Legs 204 | 54 150 Wheels 321 | . 321 Hover . | . . Flight . | . . Fastest Speed 50 | 50 90 Average Speed 105 | 106 105 Slowest Speed 120 | 120 120 Overloaded Moves . | . . Propulsion Burnouts . | . . Robots Hopped . | . . Potential Cave-ins . | . . Cave-ins Triggered . | . . Exploration Rate (%) 38 | 7 70 Regions Visited 1 Branch Regions . Pre-discovered Areas . | . . Known Exits Taken . | . . Unknown Exits Taken 1 | 1 . Scrap Searched . | . . Spaces Dug . | . . Terrain Destroyed 77 | . 77 Melee . | . . Projectile . | . . AOE 77 | . 77 Terrain Rammed . | . . Walls Destroyed . | . . Machines Disabled . | . . Actions | -11 -10 --------- Run | Yrd Mat Total 641 | 77 564 Wait 21 | . 21 Move 537 | 66 471 Hop . | . . Pick Up 11 | 2 9 Fast Attach 7 | 6 1 Attach 4 | . 4 Detach 2 | . 2 Swap 10 | . 10 Drop 4 | . 4 Fire 45 | 3 42 Melee . | . . Ram . | . . Kick . | . . Crush . | . . Escape Stasis . | . . Rewire . | . . Trap . | . . Miscellaneous . | . . Route ------- -11/Scrapyard -10/Materials (discovered 3 exits: [*Mat x2] / [*Min]) History --------- Turn | Location | Event 2 | -11/Scrapyard | Met Revision 17 62 | -11/Scrapyard | Discovered new exit (range 8) 92 | -11/Scrapyard | Entered Materials 313 | -10/Materials | Build established: Mutant 318 | -10/Materials | Discovered new exit (range 3) 370 | -10/Materials | Discovered new exit (range 16) 481 | -10/Materials | Discovered new exit (range 16) 721 | -10/Materials | Core integrity fell below 50% 735 | -10/Materials | Core integrity fell below 20% 745 | -10/Materials | Destroyed by G-34 Mercenary with Small Laser Last Messages --------------- 00703_ W-16 Scout sends out distress signal. [Achievement: Storm Trooper] 00719_ Assault Rifle destroyed. 00726_ Wheel destroyed. 00731_ System corrupted: Energy discharge (-35). 00734_ S-10 Pest destroyed. 00735_ Sensor Array destroyed. 00736_ Lgt. Assault Rifle destroyed. 00737_ K-01 Serf destroyed. 00737_ G-34 Mercenary destroyed. 00738_ Lgt. Ion Engine destroyed. 00738_ Com. Wheel destroyed. 00740_ The unstable cave ceiling collapses. 00743_ A-02 Transporter destroyed. [Achievement: Loot Pinata] The achievement interface (ESC then open Records) offers an effective way to explore all of your earned achievements as well as seek out new goals for future runs. 00743_ S-10 Pest destroyed. Map ----- +----------------------------------------------------+ | ?????????????????????????????????????????????????? | | ?????????????????????????????????????????????????? | | ?????????????????????????????????????????????????? | | ?????????????????????????????????????????????????? | | ?????????????????????????????????????????????????? | | ?????????????????????????????????????????????????? | | ?????????????????????????????????????????????????? | | ?????????????????????????????????????????????????? | | ?????????????????????????????????????????????????? | | ???????????????????????????????????????????????? | | ???????????????????????????????????????????????? | | ???????????????????????????????????????????????? | | ???????????????????????????????????????????????? | | #??????????????????????????????????????????????? | | ??????????????????????????????????????????????? | | ??????????????????????????????????????????????? | | ??????????????????????????????????????????????? | | ??????????????????????????????????????????????? | | ??????????????????????????????????????????????? | | #??????????????????????????????????????????????? | | #??????????????????????????????????????????????? | | #?????????# # # ???????????????????????????????? | | ########## # ####?????????????????????????? | | #?????????????????????????? | | g= ##########???????????????? | | =!%%@s r ????????? | | ############# !%! #########???????????????? | | ### =! #????????????????????????? | | """ ""# #?????????????????????????? | | """ T"# g #?????????????????????????? | | """ ""# # """??????????###?????? | | # + ???????##T###### | | ! # #??????????????# | | #####+#### #### ##?????????????# ? | | #??" #?###########?# ??? | | ### #?? #?# #?# #????? | | #?# #?? #?# ### #????? | | #### #?# #?" < ### # #????? | | #??# #?# #?| #"" + #????? | | #??# ### #? #"T # #????? | | #??# ##" #?"" #"" #+##+########? | | #??# ##" #### #### # #? | | #??# ##" #??# # #? | | #??# ##T #??### +## #? | | #??# ##" #???# "" # ## #? | | #??# ##" #???# #### ## #? | | #?## ##" ##### #???####??# ## #? | | #??# ### #???# #+########??# ## #? | | #??# #?# #???# # #### ############## | | #??# ### #???# # # ## """ # | +----------------------------------------------------+ Best States ------------- Heat Dissipation 49 Energy Generation 10 Energy Capacity 125 Matter Stores 300 Matter Capacity 300 Sight Range 16 Robot Scan Range 14 Terrain Scan Range 14 Terrain Scan Density 10 Evasion (%) 55 Item Schematics ----------------- None Robot Schematics ------------------ None Fabricated ------------ Nothing Repaired ---------- Nothing Alien Tech Used ----------------- None Achievements -------------- Loot Pinata Maybe Next Time I'll Detach My Launcher One Hack Too Far Storm Trooper Challenges ------------ None Game ------ Seed MissileSkeletonPrototype Manual? 0 Play Time 00:38:58 Cumulative 3.8 hours Start 2025.10.17 @ 00:03:35 End 2025.10.19 @ 12:44:26 Sessions 3 Manual Loads 0 Difficulty Rogue Special Mode None Game No. 2 Rogue 2 Adventurer 0 Explorer 0 Win Type - Total 0 Types 0/0/0/0/0/0/0/0/0/0 Lore% 0 Gallery% 3 Achievement% 3 Wizard Run 0 Options --------- Layout 2 ASCII 0 Keyboard 1 Movement Vi Keybinds 0 Fullscreen 1 Font 32/Terminus Map View 50x44 Zoom Use 0% Tactical HUD 1 Map Filters NONE Filters NONE Steam 1 RUN: 36e95590-8037-4e31-92c8-89183f724da5